bitfinex-derivatives/quotes_ETHF0:USTF0_20250212
["timestamp","ask_amount","ask_price","bid_price","bid_amount"]
[1739345265211,3.2078,2616.2,2615.8,1.1679]
[1739345265721,0.5795,2616.4,2615.8,1.1679]
[1739345266318,1.713,2616.4,2615.8,1.1679]
[1739345269114,1.713,2616.4,2616.0,6.35081231]
[1739345269322,1.713,2616.4,2616.1,0.5895]
[1739345269718,1.713,2616.4,2616.2,0.5543]
[1739345270019,1.713,2616.4,2616.3,0.5917]
[1739345272618,3.2078,2616.9,2616.3,3.73471231]
[1739345272825,4.9208,2616.9,2616.3,6.94251231]
[1739345273029,4.9208,2616.9,2616.3,3.73471231]
[1739345273320,4.9208,2616.9,2616.4,40.8]
[1739345273619,5.4765,2616.9,2616.4,40.8]
[1739345274321,4.9208,2616.9,2616.4,40.8]
[1739345281021,3.2078,2616.6,2616.3,0.5917]
[1739345281230,3.2078,2616.6,2616.0,0.3107187]
[1739345281231,0.5891,2616.5,2616.0,0.3107187]
[1739345281415,0.5891,2616.5,2616.2,1.1956]
[1739345281929,3.2078,2616.6,2616.2,1.1956]
[1739345282225,0.6009,2616.8,2616.2,1.1956]
[1739345282226,0.5891,2616.8,2616.2,1.1956]
[1739345283614,6.35081231,2616.6,2616.2,1.1956]
[1739345283819,0.5566,2616.5,2616.2,1.1956]
[1739345284126,0.5566,2616.5,2615.8,0.18864712]
[1739345284127,1.1078,2616.5,2615.8,0.18864712]
[1739345284429,0.5706,2616.4,2615.9,1.1669]
[1739345284622,1.716,2616.3,2615.9,1.1669]
[1739345284823,4.9238,2616.3,2615.9,1.1669]
[1739345287326,2.2836,2616.4,2616.0,3.14301231]
[1739345287527,1.713,2616.4,2616.0,3.14301231]
[1739345288535,1.713,2616.4,2615.9,1.1669]
[1739345289221,3.2078,2616.3,2615.9,1.1669]
[1739345289731,1.713,2616.4,2615.9,1.1669]
[1739345290428,1.713,2616.4,2615.9,1.48448232]
[1739345291432,1.713,2616.4,2615.9,1.1669]
[1739345291733,2.2656,2616.4,2615.9,1.1669]
[1739345292135,3.2078,2616.2,2615.9,1.1669]
[1739345292739,0.5735,2616.1,2615.9,1.1669]
[1739345295531,3.2078,2616.2,2615.9,1.1669]
[1739345296437,1.713,2616.4,2615.9,1.1669]
[1739345296935,2.2642,2616.4,2615.9,1.1669]
[1739345297139,2.2642,2616.4,2615.9,1.47161082]
[1739345300038,0.5512,2616.4,2615.9,1.47161082]
[1739345300339,0.6094,2616.3,2615.9,1.47161082]
[1739345300739,3.2078,2616.2,2615.9,1.1669]
[1739345301434,4.9208,2616.5,2615.9,1.1669]
[1739345305241,3.2078,2616.5,2615.9,1.1669]
[1739345311235,0.5647,2616.7,2616.1,3.2078]
[1739345311544,2.3169,2616.9,2616.1,3.2078]
[1739345311745,2.2676,2616.9,2616.3,3.14301231]
[1739345311945,2.2676,2616.9,2616.4,1.1376]
[1739345312246,2.2676,2616.9,2616.4,1.7378]
[1739345313344,0.6039,2616.8,2616.4,1.7378]
[1739345314443,0.6039,2616.8,2616.4,4.9456]
[1739345315239,0.6039,2616.8,2616.4,1.7378]
[1739345317948,0.6039,2616.8,2616.4,1.9263407]
[1739345318844,0.5546,2616.9,2616.6,3.14301231]
[1739345319051,4.9208,2617.4,2616.8,0.7644]
[1739345319251,0.5985,2617.3,2616.9,4.30491231]
[1739345319642,0.5985,2617.3,2616.9,41.9619]
[1739345320852,1.1781,2617.3,2616.9,41.9619]
[1739345322747,1.1781,2617.3,2616.9,42.27720392]
[1739345323744,1.1781,2617.3,2616.9,1.47720392]
[1739345327863,0.5796,2617.3,2616.9,1.47720392]
[1739345328072,3.2078,2617.4,2616.9,1.47720392]
[1739345328763,3.2078,2617.4,2616.9,4.62021623]
[1739345329665,3.2078,2617.4,2617.0,3.2078]
[1739345332870,3.2078,2617.4,2617.2,0.19404816]
[1739345333069,3.2078,2617.4,2617.3,0.5619]
[1739345333272,3.2078,2617.4,2617.3,1.1448]
[1739345334468,0.5588,2617.6,2617.3,1.7176]
[1739345334874,3.7992,2617.9,2617.3,1.7176]
[1739345335166,0.5771,2617.8,2617.6,0.76416]
[1739345335368,1.712,2618.1,2617.7,3.2078]
[1739345335569,1.712,2618.1,2617.8,1.1347]
[1739345335773,1.712,2618.1,2617.9,0.6098]
[1739345338066,1.1685,2618.2,2617.9,0.6098]
[1739345338478,1.1685,2618.2,2617.8,0.5619]
[1739345338770,1.1685,2618.2,2617.6,0.5954]
[1739345338964,3.2078,2618.0,2617.6,0.5954]
[1739345339273,0.5906,2617.9,2617.6,0.5954]
[1739345339771,0.563,2617.8,2617.6,0.5954]
[1739345340373,0.563,2617.8,2617.4,3.51699321]
[1739345340675,1.1597,2617.8,2617.4,3.51699321]
[1739345340875,0.563,2617.8,2617.4,3.51699321]
[1739345343275,0.5967,2618.2,2617.4,3.51699321]
[1739345343463,0.5585,2618.1,2617.4,3.51699321]
[1739345345070,0.5585,2618.1,2617.7,3.2078]
[1739345345273,0.5585,2618.1,2617.8,1.7402]
[1739345348476,3.2078,2618.3,2617.8,1.7402]
[1739345349185,3.2078,2618.3,2617.9,40.8]
[1739345350771,6.35081231,2618.3,2617.9,40.8]
[1739345350977,6.35081231,2618.3,2617.8,1.1613]
[1739345351182,6.35081231,2618.3,2617.8,1.7493]
[1739345352476,6.35081231,2618.3,2617.8,1.1613]
[1739345352679,6.35081231,2618.3,2617.4,3.7785]
[1739345352888,6.35081231,2618.3,2617.4,4.9529]
[1739345353787,3.2078,2618.0,2617.4,4.9529]
[1739345353988,1.7722,2617.9,2617.4,4.9529]
[1739345354782,3.4832,2617.9,2617.4,4.9529]
[1739345359382,1.711,2617.9,2617.4,4.9529]
[1739345362299,1.1699,2618.2,2617.5,3.14301231]
[1739345362494,0.5908,2618.2,2617.7,3.2078]
[1739345362694,0.5908,2618.2,2617.8,1.1453]
[1739345362998,0.5908,2618.2,2617.8,1.7082]
[1739345363898,1.711,2618.3,2617.8,1.7082]
[1739345365300,1.711,2618.3,2617.8,2.02094968]
[1739345368702,1.711,2618.3,2617.8,1.7082]
[1739345372997,3.2078,2618.1,2617.8,0.5513]
[1739345373307,3.71501231,2618.0,2617.6,0.5684]
[1739345373500,4.27421231,2618.0,2617.6,0.5684]
[1739345374402,3.70221231,2618.0,2617.6,0.5684]
[1739345374603,0.5592,2618.0,2617.6,0.5684]
[1739345375499,4.85401231,2618.3,2617.6,3.71141231]
[1739345375705,5.44701231,2618.3,2617.6,0.5684]
[1739345376508,3.2078,2618.0,2617.6,0.5684]
[1739345377005,8.65481231,2618.3,2617.6,0.5684]
[1739345379799,9.21891231,2618.3,2617.6,0.5684]
[1739345383806,3.2078,2618.0,2617.5,0.5979]
[1739345384004,1.7431,2617.9,2617.5,0.5979]
[1739345396611,1.7431,2617.9,2617.2,0.19404816]
[1739345396811,3.14301231,2617.7,2617.2,1.38634816]
[1739345397010,4.85301231,2617.7,2617.2,1.1923]
[1739345397219,0.6047,2617.6,2617.2,1.1923]
[1739345398106,3.8125,2617.6,2617.2,0.5958]
[1739345398308,3.8125,2617.6,2616.4,3.1865407]
[1739345398309,3.14301231,2617.4,2616.8,3.21353789]
[1739345398621,3.14301231,2617.4,2616.8,3.5279669]
[1739345398919,0.6047,2617.3,2616.9,41.3965]
[1739345399118,0.6047,2617.3,2617.0,0.5958]
[1739345400315,3.8125,2617.3,2617.0,0.5958]
[1739345400516,3.8125,2617.3,2616.8,3.21353789]
[1739345401015,3.8125,2617.3,2616.9,40.8]
[1739345401216,3.8125,2617.3,2617.0,0.6053]
[1739345401517,0.6047,2617.3,2617.1,0.5746]
[1739345405219,1.71,2617.4,2617.1,0.5746]
[1739345405615,1.174,2617.5,2617.1,0.5746]
[1739345405816,2.884,2617.5,2617.1,0.5746]
[1739345406119,1.71,2617.5,2617.1,0.5746]
[1739345406516,1.71,2617.5,2617.2,40.8]
[1739345407517,1.71,2617.5,2617.3,0.6082]
[1739345407718,1.71,2617.5,2617.4,0.5651]
[1739345408123,3.7587,2617.6,2617.4,0.5651]
[1739345408420,3.2078,2617.6,2617.5,0.5616]
[1739345409415,1.71,2617.8,2617.5,0.5616]
[1739345409918,3.2078,2618.0,2617.6,0.5951]
[1739345410122,3.2078,2618.0,2617.6,3.73811231]
[1739345411117,3.2078,2618.0,2617.8,3.14301231]
[1739345411422,3.2078,2618.0,2617.9,0.5873]
[1739345411624,1.71,2618.4,2617.9,3.7951]
[1739345411811,3.7905,2618.8,2618.2,3.14301231]
[1739345412016,3.2078,2618.8,2618.2,6.35081231]
[1739345412223,3.2078,2618.8,2618.3,40.8]
[1739345412517,3.2078,2618.8,2618.4,0.6038]
[1739345412718,3.2078,2618.8,2618.4,1.1827]
[1739345413121,1.71,2619.0,2618.4,1.1827]
[1739345414028,3.14301231,2619.0,2618.4,1.1827]
[1739345414214,3.71181231,2619.0,2618.4,1.1827]
[1739345416531,6.35081231,2618.7,2618.4,0.5789]
[1739345416722,0.5644,2618.6,2618.2,3.21353789]
[1739345416922,0.5644,2618.6,2618.3,0.5535]
[1739345417820,0.5644,2618.6,2618.2,0.00573789]
[1739345418418,3.14301231,2618.4,2618.2,0.00573789]
[1739345418727,0.76397,2618.3,2618.2,0.00191261]
[1739345418928,0.76407,2618.0,2617.5,0.5827]
[1739345419122,3.2078,2617.6,2617.5,0.5827]
[1739345420020,3.2078,2617.6,2617.3,0.00573789]
[1739345421519,3.2078,2617.6,2617.3,3.1487502]
[1739345423630,0.00573789,2617.8,2617.3,3.1487502]
[1739345425927,0.00573789,2617.8,2617.6,3.14301231]
[1739345426123,0.00573789,2617.8,2617.7,1.188]
[1739345426432,0.00573789,2617.8,2617.7,41.988]
[1739345427026,3.2078,2618.0,2617.7,41.988]
[1739345427328,3.2078,2618.0,2617.9,3.14301231]
[1739345427723,0.588,2618.4,2617.9,3.14301231]
[1739345430433,0.588,2618.4,2618.0,0.5827]
[1739345430933,4.9168,2618.5,2618.1,0.5988]
[1739345432332,3.2078,2618.5,2618.1,0.5988]
[1739345432733,3.2078,2618.5,2618.2,0.5706]
[1739345432929,3.2078,2618.5,2618.2,3.71361231]
[1739345433635,1.709,2618.8,2618.3,3.2078]
[1739345434134,3.2078,2618.9,2618.3,3.2078]
[1739345435335,0.5718,2619.0,2618.3,3.2078]
[1739345436733,0.5718,2619.0,2618.3,3.39883446]
[1739345439240,2.2808,2619.0,2618.3,3.39883446]
[1739345440141,2.2808,2619.0,2618.3,3.71191102]
[1739345440834,5.4886,2619.0,2618.3,3.71191102]
[1739345441033,5.4886,2619.0,2618.3,3.39883446]
[1739345441234,3.14301231,2618.8,2618.3,3.39883446]
[1739345441444,3.14301231,2618.8,2618.3,3.2078]
[1739345441445,3.768,2618.7,2618.3,3.2078]
[1739345441837,0.6054,2618.6,2618.3,3.2078]
[1739345442836,0.6054,2618.6,2618.1,0.5988]
[1739345443030,3.14301231,2618.5,2618.0,0.5827]
[1739345443236,4.9158,2618.4,2617.9,3.2078]
[1739345446147,3.14301231,2618.2,2617.9,3.2078]
[1739345446349,1.1685,2618.1,2617.9,3.2078]
[1739345446649,1.7678,2618.1,2617.9,3.2078]
[1739345447347,4.9756,2618.1,2617.7,0.565]
[1739345447548,4.9756,2618.1,2617.5,44.0078]
[1739345448045,3.8071,2618.1,2617.6,3.14301231]
[1739345448252,1.708,2618.4,2617.9,6.35081231]
[1739345448453,1.708,2618.5,2618.0,1.7531]
[1739345448947,4.9158,2618.5,2618.0,1.7531]
[1739345449343,3.2078,2618.5,2618.0,1.7531]
[1739345449552,1.708,2618.7,2618.0,1.7531]
[1739345450045,1.708,2618.7,2618.2,3.2078]
[1739345451445,1.708,2618.7,2618.2,6.35081231]
[1739345451745,3.2078,2618.9,2618.2,6.35081231]
[1739345451942,0.36647,2619.3,2618.8,3.14301231]
[1739345452144,3.2078,2619.8,2619.1,3.14301231]
[1739345452748,3.2078,2619.8,2619.2,3.2078]
[1739345453146,4.9158,2619.8,2619.2,3.2078]
[1739345454049,3.2078,2619.8,2619.2,3.2078]
[1739345456450,3.2078,2619.5,2618.9,4.9774]
[1739345457449,3.8081,2619.5,2618.9,4.9774]
[1739345459859,3.2078,2619.2,2618.9,0.5824]
[1739345460060,3.2078,2619.2,2618.8,0.00573789]
[1739345460363,0.565,2619.1,2618.8,0.00573789]
[1739345461150,3.2078,2619.2,2618.8,0.00573789]
[1739345461752,3.7976,2619.2,2618.8,0.00573789]
[1739345462651,3.2078,2619.2,2618.8,0.00573789]
[1739345463053,3.2078,2619.2,2618.8,3.1487502]
[1739345463464,4.9158,2619.6,2619.1,3.14301231]
[1739345463658,4.9158,2619.6,2619.2,1.1371]
[1739345463863,3.2078,2621.1,2619.5,3.2078]
[1739345464057,6.35081231,2621.7,2621.0,3.2078]
[1739345464366,3.14301231,2621.4,2621.0,3.2078]
[1739345464558,3.14301231,2621.1,2620.6,3.2078]
[1739345464764,2.2987,2621.0,2620.6,3.2078]
[1739345464962,0.5968,2620.9,2620.6,3.2078]
[1739345465657,1.72,2620.8,2620.6,3.2078]
[1739345468255,1.72,2620.8,2620.3,3.2078]
[1739345468256,10.86301231,2620.8,2620.3,3.2078]
[1739345468452,3.2078,2620.7,2620.3,3.2078]
[1739345468758,3.14301231,2620.5,2620.3,3.2078]
[1739345469162,0.5658,2620.4,2620.0,3.21352639]
[1739345469359,0.5767,2620.3,2620.0,3.21352639]
[1739345474067,1.715,2620.2,2620.0,3.21352639]
[1739345474360,1.715,2620.2,2620.1,0.5979]
[1739345474769,1.715,2620.2,2620.1,41.3979]
[1739345475470,0.6027,2620.7,2620.1,41.3979]
[1739345475670,1.714,2620.6,2620.1,41.3979]
[1739345475867,1.714,2620.6,2620.5,3.2078]
[1739345476067,3.2078,2621.3,2620.5,3.2078]
[1739345476265,1.7796391,2621.2,2620.8,3.2078]
[1739345476568,0.06263481,2621.1,2620.8,3.2078]
[1739345476972,6.35081231,2621.0,2620.0,3.21352639]
[1739345477170,3.90636231,2620.5,2620.0,0.00572639]
[1739345477368,2.96323481,2620.4,2620.0,0.00572639]
[1739345477568,0.06263481,2620.3,2620.0,0.00572639]
[1739345477876,3.2078,2620.2,2620.0,0.00572639]
[1739345478068,0.06263481,2620.1,2620.0,0.00572639]
[1739345478578,0.06263481,2620.1,2619.6,3.2078]
[1739345479678,0.06266926,2620.0,2619.6,3.21352639]
[1739345480379,0.06266926,2620.0,2619.6,0.00572639]
[1739345481675,0.5551,2619.9,2619.6,0.00572639]
[1739345481881,1.724,2619.8,2619.6,0.00572639]
[1739345482387,0.06267429,2619.7,2619.6,0.00572639]
[1739345482887,1.724,2619.8,2619.6,0.00572639]
[1739345483574,0.06267294,2619.7,2619.6,0.00572639]
[1739345483780,7.27445357,2619.7,2619.3,3.2078]
[1739345484088,0.06267294,2619.6,2619.3,3.2078]
[1739345486485,0.06267294,2619.6,2619.4,0.5503]
[1739345486684,1.723,2619.5,2619.4,0.5503]
[1739345487589,0.5551,2619.9,2619.4,0.5503]
[1739345487887,1.78567263,2619.8,2619.4,0.5503]
[1739345488193,4.06665326,2619.7,2619.3,3.817]
[1739345488382,0.06267263,2619.6,2619.2,0.00572639]
[1739345489387,4.76764063,2619.4,2619.2,0.00572639]
[1739345489582,0.67057263,2619.3,2619.2,0.00572639]
[1739345491389,0.67059332,2619.3,2619.2,0.00572639]
[1739345493887,1.43426332,2619.3,2619.2,0.00572639]
[1739345494285,0.67059332,2619.3,2619.2,0.00572639]
[1739345495792,1.43426332,2619.3,2619.2,0.00572639]
[1739345495994,0.06269332,2619.3,2619.2,0.00572639]
[1739345496193,1.72,2619.3,2619.2,0.00572639]
[1739345496797,4.00398063,2619.7,2619.2,0.00572639]
[1739345496993,0.06268091,2619.6,2619.3,3.2078]
[1739345497185,0.00568806,2620.1,2619.5,3.2078]
[1739345497496,1.724,2619.9,2619.6,0.5596]
[1739345498192,1.725,2619.9,2619.6,0.5596]
[1739345498587,1.725,2619.9,2619.7,0.5953]
[1739345499797,5.72898063,2619.9,2619.4,0.6071]
[1739345500095,5.72898063,2619.9,2619.5,0.5584]
[1739345500486,5.72898063,2619.9,2619.6,3.2078]
[1739345500989,5.72898063,2619.9,2619.5,0.5584]
[1739345501394,1.725,2619.9,2619.5,0.5584]
[1739345501594,1.733,2619.8,2619.5,0.5584]
[1739345501794,1.733,2619.8,2619.6,3.2078]
[1739345502499,1.733,2619.8,2619.5,0.5584]
[1739345503502,1.733,2619.8,2619.6,3.2078]
[1739345504298,1.73,2619.8,2619.6,3.2078]
[1739345506902,1.73,2619.8,2619.6,2.8253]
[1739345507498,1.73031225,2619.9,2619.6,2.8253]
[1739345507706,1.72931225,2619.9,2619.6,2.8253]
[1739345509894,1.72931225,2619.9,2619.5,0.5584]
[1739345510408,3.12801399,2619.8,2619.5,0.5584]
[1739345511101,1.72931225,2619.9,2619.5,0.5584]
[1739345511504,0.06267157,2619.8,2619.5,0.5584]
[1739345512201,1.72931225,2619.9,2619.5,0.5584]
[1739345512603,0.06267163,2619.8,2619.5,0.5584]
[1739345513204,1.72931225,2619.9,2619.5,0.5584]
[1739345518705,1.72931225,2619.9,2619.3,3.2078]
[1739345518706,6.33581399,2619.8,2619.3,3.2078]
[1739345518905,6.93181399,2619.8,2619.3,3.2078]
[1739345519106,0.06267507,2619.7,2619.3,3.2078]
[1739345520715,6.93181399,2619.8,2619.3,3.2078]
[1739345520904,0.0626742,2619.7,2619.3,3.2078]
[1739345521105,3.12801399,2619.5,2619.3,3.2078]
[1739345521314,0.5545,2619.4,2619.3,3.2078]
[1739345523612,1.71,2619.4,2619.3,3.2078]
[1739345524410,0.5545,2619.7,2619.3,3.2078]
[1739345524712,1.709,2619.6,2619.4,1.1964]
[1739345527919,2.2625,2619.7,2619.4,1.1964]
[1739345529713,0.00331225,2619.9,2619.6,3.2078]
[1739345531021,0.00331225,2619.9,2619.7,40.8]
[1739345534920,0.00331225,2619.9,2619.6,3.2078]
[1739345542024,0.00331225,2619.9,2619.6,6.33581399]
[1739345542224,0.00331225,2619.9,2619.6,3.2078]
[1739345545326,0.00331225,2619.9,2619.8,3.12801399]
[1739345545523,0.00568806,2620.1,2619.8,3.12801399]
[1739345545727,0.00568806,2620.1,2620.0,3.2078]
[1739345546028,0.00568806,2620.1,2620.0,44.0078]
[1739345548726,0.00568806,2620.1,2620.0,3.7862]
[1739345550138,0.00568806,2620.1,2620.0,4.54967]
[1739345550334,3.2078,2621.2,2620.0,9.7862]
[1739345550528,0.5998,2621.1,2620.6,3.2078]
[1739345550730,0.5998,2621.1,2620.7,1.1375]
[1739345551033,2.3068,2621.1,2620.7,1.1375]
[1739345551228,2.3068,2621.1,2620.9,3.2078]
[1739345551229,0.5998,2621.1,2620.9,3.2078]
[1739345551534,2.31702639,2621.2,2620.9,3.2078]
[1739345551927,1.71272639,2621.2,2620.9,3.2078]
[1739345552144,0.00572639,2621.2,2621.0,3.12801399]
[1739345553231,0.00572639,2621.2,2620.9,3.2078]
[1739345554737,0.00572639,2621.2,2621.0,40.8]
[1739345556330,6.33581399,2622.5,2621.3,0.76307]
[1739345556537,3.2078,2622.8,2622.2,3.2078]
[1739345556834,1.1898,2623.1,2622.5,3.2078]
[1739345557035,0.06259006,2623.0,2622.5,3.2078]
[1739345557237,5.5246,2623.3,2622.5,3.2078]
[1739345557537,0.06258063,2623.2,2622.8,3.2078]
[1739345557741,5.5246,2623.3,2622.8,3.2078]
[1739345557938,0.06258195,2623.2,2622.8,3.2078]
[1739345558231,1.77658195,2623.2,2622.8,3.2078]
[1739345558536,3.19059594,2623.1,2622.8,3.2078]
[1739345558737,0.06258524,2623.0,2622.8,3.2078]
[1739345559128,3.68951399,2623.1,2622.8,3.2078]
[1739345559529,0.06258537,2623.0,2622.8,3.2078]
[1739345559729,3.68951399,2623.1,2622.8,3.2078]
[1739345562835,0.5615,2623.1,2622.8,3.2078]
[1739345563035,3.68951399,2623.1,2622.8,3.2078]
[1739345565539,1.708,2623.2,2622.8,3.2078]
[1739345565741,1.708,2623.2,2622.9,1.1968]
[1739345566334,1.708,2623.2,2622.8,3.2078]
[1739345566530,3.12801399,2623.1,2622.8,3.2078]
[1739345566839,4.29211399,2623.1,2622.8,3.2078]
[1739345567531,4.29211399,2623.1,2622.5,3.21352639]
[1739345568334,3.12801399,2622.6,2622.5,0.00572639]
[1739345568536,8.04681399,2622.6,2621.5,3.12801399]
[1739345568744,3.12801399,2622.1,2621.6,3.2078]
[1739345568938,1.717,2622.0,2621.6,3.2078]
[1739345569138,0.5583,2621.9,2621.6,3.2078]
[1739345570735,0.5583,2621.9,2621.5,0.00572639]
[1739345570942,3.71601399,2621.8,2621.5,0.00572639]
[1739345571743,0.5677,2621.7,2621.5,0.00572639]
[1739345573246,1.717,2621.6,2621.5,0.00572639]
[1739345576143,0.5583,2621.9,2621.5,0.00572639]
[1739345576345,0.00572639,2622.0,2621.7,3.12801399]
[1739345576540,0.00572639,2622.0,2621.9,3.2078]
[1739345576938,0.00572639,2622.0,2621.9,44.0078]
[1739345578944,0.00572639,2622.0,2621.9,44.77072]
[1739345579143,0.00572639,2622.0,2621.9,44.0078]
[1739345579851,0.00572639,2622.0,2621.9,3.2078]
[1739345580347,0.00572639,2622.0,2621.5,0.00572639]
[1739345580348,0.00572639,2622.0,2621.6,44.0078]
[1739345580649,6.34154038,2622.0,2621.5,0.00572639]
[1739345580952,0.5569,2621.9,2621.5,0.00572639]
[1739345581153,1.724,2621.8,2621.5,0.00572639]
[1739345583651,1.723,2621.7,2621.5,0.00572639]
[1739345586157,4.85101399,2621.7,2621.5,0.00572639]
[1739345588461,0.61662838,2621.6,2620.9,3.2078]
[1739345588658,3.12801399,2621.4,2620.9,3.2078]
[1739345588856,3.12801399,2621.4,2620.9,44.0078]
[1739345589255,0.554,2621.6,2620.9,44.0078]
[1739345589652,0.554,2621.6,2621.0,0.00572639]
[1739345590752,0.554,2621.6,2621.0,40.80572639]
[1739345591458,8.05881399,2621.7,2621.2,3.2078]
[1739345591655,1.718,2621.6,2621.2,3.2078]
[1739345591850,1.718,2621.6,2621.3,0.5808]
[1739345593160,1.718,2621.6,2621.5,3.2078]
[1739345594458,0.5569,2621.9,2621.5,3.2078]
[1739345594661,1.718,2621.8,2621.5,3.2078]
[1739345595856,0.00572639,2622.0,2621.5,3.2078]
[1739345596164,1.72472639,2622.0,2621.5,3.2078]
[1739345597868,4.85274038,2622.0,2621.5,3.2078]
[1739345598062,6.33581399,2621.7,2621.3,0.5808]
[1739345598558,0.65362566,2621.6,2621.3,0.5808]
[1739345598762,0.591,2621.6,2621.3,0.5808]
[1739345600763,0.591,2621.6,2621.2,3.2078]
[1739345601565,0.591,2621.6,2621.1,0.561]
[1739345601871,1.1759,2621.6,2621.1,0.561]
[1739345602768,0.06262816,2621.5,2621.0,0.00572639]
[1739345603068,4.84301399,2621.4,2621.0,0.00572639]
[1739345603369,3.12801399,2621.1,2621.0,0.00572639]
[1739345604763,5.41301399,2621.4,2621.0,0.00572639]
[1739345604965,0.0626312,2621.3,2621.0,0.00572639]
[1739345605769,5.41301399,2621.4,2621.0,0.00572639]
[1739345605959,0.06263191,2621.3,2621.0,0.00572639]
[1739345606765,1.712,2621.3,2621.2,3.2078]
[1739345607264,1.712,2621.3,2621.2,44.0078]
[1739345607461,0.591,2621.6,2621.2,44.0078]
[1739345607462,1.714,2621.5,2621.2,44.0078]
[1739345608468,3.2078,2621.8,2621.2,44.0078]
[1739345608670,1.714,2621.9,2621.5,3.2078]
[1739345608871,1.714,2621.9,2621.6,0.5968]
[1739345609075,1.714,2621.9,2621.7,0.5731]
[1739345609368,0.00572639,2622.0,2621.8,3.2078]
[1739345609879,0.00572639,2622.0,2621.8,3.8108]
[1739345615679,0.00572639,2622.0,2621.8,3.2078]
[1739345618288,0.00572639,2622.0,2621.6,0.5968]
[1739345618585,1.713,2621.9,2621.5,3.2078]
[1739345619178,1.713,2621.9,2621.5,3.97082]
[1739345619383,0.00572639,2622.0,2621.8,3.2078]
[1739345619581,0.00572639,2622.0,2621.9,1.7511]
[1739345622985,0.00572639,2622.0,2621.8,3.2078]
[1739345623287,1.714,2621.9,2621.8,3.2078]
[1739345623888,1.714,2621.9,2621.4,3.2078]
[1739345625682,3.12801399,2621.7,2621.2,40.8]
[1739345625881,0.5583,2621.6,2621.2,40.8]
[1739345626679,0.5583,2621.6,2621.3,0.569]
[1739345628689,0.5583,2621.6,2621.2,40.8]
[1739345629794,1.7224,2621.6,2621.2,40.8]
[1739345631892,0.5583,2621.6,2621.2,40.8]
[1739345632192,1.707,2621.5,2621.4,3.2078]
[1739345633695,0.5516,2621.9,2621.4,3.2078]
[1739345633890,1.708,2621.8,2621.5,0.6031]
[1739345635087,1.707,2621.7,2621.5,0.6031]
[1739345636297,0.5516,2621.9,2621.5,0.6031]
[1739345636499,1.707,2621.8,2621.5,0.6031]
[1739345637900,0.00572639,2622.0,2621.5,0.6031]
[1739345638095,0.00572639,2622.0,2621.6,0.6105]
[1739345640493,6.34154038,2622.0,2621.4,3.2078]
[1739345640892,0.06261769,2621.9,2621.4,3.2078]
[1739345641290,0.5719,2621.8,2621.4,3.2078]
[1739345642095,3.13374038,2622.0,2621.4,3.2078]
[1739345642295,0.00572639,2622.0,2621.4,3.2078]
[1739345642498,0.00572639,2622.0,2621.5,0.6095]
[1739345643002,0.00572639,2622.0,2621.7,3.2078]
[1739345643205,1.71672639,2622.0,2621.8,0.6006]
[1739345644210,0.00572639,2622.0,2621.8,0.6006]
[1739345645400,0.00572639,2622.0,2621.8,1.36353]
[1739345645603,1.71,2622.5,2621.8,1.36353]
[1739345645898,3.12801399,2622.9,2622.3,3.2078]
[1739345646098,1.77159111,2622.8,2622.4,1.1786]
[1739345646409,1.709,2622.8,2622.4,1.1786]
[1739345646604,1.709,2622.8,2622.4,41.9786]
[1739345650307,1.709,2622.8,2622.4,1.1786]
[1739345650809,3.12801399,2622.6,2622.3,0.00572639]
[1739345651003,0.5935,2622.5,2622.3,3.21352639]
[1739345651204,0.5935,2622.5,2622.3,0.00572639]
[1739345651406,0.6054,2622.4,2622.3,0.00572639]
[1739345651605,0.66800404,2622.4,2622.3,0.00572639]
[1739345651811,0.66800029,2622.4,2622.3,0.00572639]
[1739345652406,0.6054,2622.4,2622.3,0.00572639]
[1739345653515,0.5813,2622.7,2622.3,0.00572639]
[1739345653713,5.5091,2622.8,2622.3,1.18712639]
[1739345654811,2.3013,2622.8,2622.3,1.18712639]
[1739345655513,0.5923,2622.8,2622.3,1.18712639]
[1739345655715,2.3113,2622.8,2622.3,1.18712639]
[1739345655908,1.719,2622.8,2622.3,4.31514038]
[1739345656112,1.72572639,2622.9,2622.5,3.2078]
[1739345656313,0.00572639,2622.9,2622.6,41.4011]
[1739345656506,0.00572639,2622.9,2622.6,41.39856069]
[1739345656706,0.00572639,2622.9,2622.6,0.59856069]
[1739345657109,0.00572639,2622.9,2622.6,41.39856069]
[1739345659612,0.00572639,2622.9,2622.8,3.2078]
[1739345661509,0.01549,2623.2,2622.8,3.97044]
[1739345661721,0.01549,2623.2,2623.1,3.2078]
[1739345661913,3.37257719,2623.8,2623.1,3.2078]
[1739345662120,3.37257719,2623.8,2623.2,3.68681399]
[1739345663114,0.16477719,2623.8,2623.4,3.2078]
[1739345663414,3.29279118,2623.8,2623.4,3.2078]
[1739345663720,3.12801399,2623.5,2623.4,3.2078]
[1739345663914,0.06257003,2623.5,2623.4,3.2078]
[1739345664318,0.06257003,2623.5,2623.0,3.7844]
[1739345664615,0.5829,2623.7,2623.0,3.7844]
[1739345664816,1.1452,2623.4,2623.0,3.7844]
[1739345665019,2.8642,2623.4,2623.0,3.7844]
[1739345665927,1.719,2623.4,2623.0,3.7844]
[1739345666220,1.72,2623.6,2623.0,3.7844]
[1739345674326,3.12801399,2623.4,2623.0,3.2078]
[1739345676222,0.06257926,2623.3,2623.0,3.2078]
[1739345676619,1.7301,2623.2,2623.0,3.2078]
[1739345681735,1.7301,2623.2,2622.7,4.3859]
[1739345682331,3.12801399,2623.1,2622.7,3.7912]
[1739345682635,1.71,2623.0,2622.7,3.2078]
[1739345694734,3.12801399,2623.4,2622.7,3.2078]
[1739345695040,1.706,2623.3,2622.8,40.8]
[1739345695338,1.706,2623.3,2622.9,1.1816]